fUSD/lending_fUSD_20251012
["ID","MTS","AMOUNT","RATE_DAILY","PERIOD"]
[391025552,1760296318046,-50000.0,0.00029501,31]
[391025553,1760296318057,-50000.0,0.00029501,32]
[391025554,1760296318068,-50000.0,0.00029501,33]
[391025555,1760296318080,-50000.0,0.00029501,34]
[391025556,1760296318091,-50000.0,0.00029501,35]
[391025557,1760296318101,-50000.0,0.00029501,36]
[391025558,1760296318112,-1647.85,0.00029502,30]
[391025559,1760296318122,-78664.3682031,0.00029502,10]
[391025560,1760296318133,-9341.45697458,0.00029502,6]
[391025561,1760296318142,-377.37303234,0.00029502,2]
[391025562,1760296318151,-10460.6668464,0.00029502,2]
[391025563,1760296318162,-396.20075967,0.00029502,2]
[391025564,1760296318171,-573.69495056,0.00029502,5]
[391025565,1760296318183,-204552.51979714,0.00029502,2]
[391025566,1760296318196,-123616.01425667,0.00029502,2]
[391025567,1760296318207,-10774.13639101,0.00029502,3]
[391025568,1760296318217,-1210.0,0.00029502,2]
[391025569,1760296318228,-712.72414796,0.00029502,2]
[391025570,1760296318238,-367.00304089,0.00029502,2]
[391025571,1760296318247,-2020.98106525,0.00029502,5]
[391025572,1760296318257,-1289.999999,0.00029502,2]
[391025573,1760296318266,-353.13712834,0.00029502,2]
[391025574,1760296318276,-2823.14475577,0.00029502,2]
[391025575,1760296318285,-29189.90145169,0.00029502,2]
[391025576,1760296318294,-6701.74411765,0.00029502,2]
[391025577,1760296318303,-1541.44686039,0.00029502,2]
[391025578,1760296318313,-1043.92701794,0.00029502,2]
[391025579,1760296318322,-5255.12499037,0.00029502,2]
[391025580,1760296318331,-351.36705175,0.00029502,2]
[391025581,1760296318341,-2487.93621087,0.00029502,2]
[391025582,1760296318351,-2740.70392801,0.00029502,2]
[391025583,1760296318360,-219227.67108057,0.00029502,2]
[391025584,1760296318370,-153.39146311,0.00029502,2]
[391025585,1760296318380,-1700.51678029,0.00029502,2]
[391025586,1760296318389,-994.3246456,0.00029502,5]
[391025587,1760296318399,-252.57174875,0.00029502,2]
[391025588,1760296318408,-500.0,0.00029502,2]
[391025589,1760296318418,-1003.9199561,0.00029502,2]
[391025590,1760296318429,-1278.71089675,0.00029502,2]
[391025591,1760296318440,-246.9281343,0.00029502,2]
[391025592,1760296318450,-7821.81370583,0.00029502,2]
[391025593,1760296318460,-163.97556329,0.00029502,2]
[391025594,1760296318470,-1055.91969556,0.00029502,2]
[391025595,1760296318479,-600.0,0.00029502,5]
[391025596,1760296318488,-552.7783914,0.00029502,2]
[391025597,1760296318498,-9357.88649586,0.00029502,2]
[391025598,1760296318507,-1329.63354823,0.00029502,2]
[391025599,1760296318517,-1221.0,0.00029502,4]
[391025600,1760296318526,-3466.09041187,0.00029502,2]
[391025601,1760296318535,-2226.2283797,0.00029502,2]
[391025602,1760296318546,-757.78783062,0.00029502,2]
[391025603,1760296318555,-12999.65200174,0.00029502,2]
[391025604,1760296318565,-1945.7905563,0.00029502,2]
[391025605,1760296318576,-186.56809313,0.00029502,2]
[391025606,1760296318586,-5085.78331781,0.00029502,2]
[391025607,1760296318596,-15098.01840199,0.00029502,3]
[391025608,1760296318605,-643.0,0.00029502,2]
[391025609,1760296318615,-4807.00797727,0.00029502,4]
[391025610,1760296318624,-983.81341188,0.00029502,2]
[391025611,1760296318634,-19322.35110282,0.00029502,5]
[391025612,1760296318644,-580.8542333,0.00029502,2]
[391025613,1760296318653,-1860.39307222,0.00029502,2]
[391025614,1760296318662,-1000000.0,0.00029502,2]
[391025615,1760296318671,-3285.43341289,0.00029502,2]
[391025616,1760296318681,-177.79899841,0.00029502,2]
[391025617,1760296318690,-291736.05335383,0.00029502,2]
[391025618,1760296318700,-311.76956485,0.00029502,2]
[391025619,1760296318709,-7367.75140423,0.00029502,2]
[391025620,1760296318718,-550.0,0.00029502,2]
[391025621,1760296318727,-1022.49671091,0.00029502,2]
[391025622,1760296318736,-10844.64006518,0.00029502,2]
[391025623,1760296318745,-172126.2438946,0.00029502,2]
[391025624,1760296318755,-15123.30236215,0.00029502,2]
[391025625,1760296318765,-231.95512105,0.00029502,2]
[391025626,1760296318775,-176.03496608,0.00029502,2]
[391025627,1760296318785,-494.85780431,0.00029502,3]
[391025628,1760296318795,-6000.0,0.00029502,2]
[391025629,1760296318804,-380.31449948,0.00029502,2]
[391025630,1760296318814,-1489.0484761,0.00029502,2]
[391025631,1760296318826,-1046.9834206,0.00029502,2]
[391025632,1760296318836,-5081.04361492,0.00029502,2]
[391025633,1760296318847,-1192.52741403,0.00029502,2]
[391025634,1760296318856,-570.54780353,0.00029502,2]
[391025635,1760296318867,-150.0,0.00029502,2]
[391025636,1760296318876,-7866.49064195,0.00029502,2]
[391025637,1760296318886,-1001.46656941,0.00029502,2]
[391025638,1760296318897,-634.54044897,0.00029502,2]
[391025639,1760296318909,-222.70809696,0.00029502,5]
[391025640,1760296318919,-217.53441241,0.00029502,2]
[391025641,1760296318930,-166353.34077187,0.00029502,2]
[391025642,1760296318940,-194.13365934,0.00029502,10]
[391025643,1760296318951,-1080.66947418,0.00029502,2]
[391025644,1760296318962,-2500.0,0.00029502,2]
[391025645,1760296318972,-586.67127498,0.00029502,2]
[391025646,1760296318983,-346.57652631,0.00029502,2]
[391025647,1760296318994,-1100.0,0.00029502,2]
[391025648,1760296319004,-924.10374792,0.00029502,2]
[391025649,1760296319014,-15785.50997826,0.00029502,2]
[391025650,1760296319024,-487.89874487,0.00029502,2]
[391025651,1760296319033,-239.39275689,0.00029502,3]
[391025652,1760296319043,-1608.14735564,0.00029502,2]
[391025653,1760296319052,-21365.55146189,0.00029502,2]
[391025654,1760296319061,-1100.22132483,0.00029502,5]
[391025655,1760296319074,-555.50658504,0.00029502,2]
[391025656,1760296319084,-5070.32258623,0.00029502,2]
[391025657,1760296319094,-1025.05663213,0.00029502,2]
[391025658,1760296319104,-369.60498319,0.00029502,2]
[391025659,1760296319113,-2232.3798038,0.00029502,2]
[391025660,1760296319123,-14985.83743069,0.00029502,2]
[391025661,1760296319132,-23348.18414791,0.00029502,2]
[391025662,1760296319142,-6883.63035146,0.00029502,4]
[391025663,1760296319152,-1860.83241884,0.00029502,2]
[391025664,1760296319161,-1132.89285116,0.00029502,2]
[391025665,1760296319171,-25179.89875736,0.00029502,5]
[391025666,1760296319180,-5280.63113761,0.00029502,4]
[391025667,1760296319189,-408.05079652,0.00029502,2]
[391025668,1760296319198,-1502.81612561,0.00029502,2]
[391025669,1760296319208,-20540.18680352,0.00029502,2]
[391025670,1760296319218,-2471.84281808,0.00029502,2]
[391025671,1760296319227,-205.63947035,0.00029502,2]
[391025672,1760296319237,-875.21812381,0.00029502,2]
[391025673,1760296319246,-286.68887948,0.00029502,2]
[391025674,1760296319255,-5764.23662677,0.00029502,2]
[391025675,1760296319265,-4642.05706161,0.00029502,2]
[391025676,1760296319274,-2202.47862078,0.00029502,2]
[391025677,1760296319283,-888.0778883,0.00029502,2]
[391025678,1760296319292,-466.77487929,0.00029502,2]
[391025679,1760296319301,-150.0,0.00029502,2]
[391025680,1760296319311,-160.0,0.00029502,2]
[391025681,1760296319320,-12787.69777235,0.00029502,2]
[391025682,1760296319330,-160.09579983,0.00029502,2]
[391025683,1760296319340,-464.0923761,0.00029502,2]
[391025684,1760296319349,-202.14358053,0.00029502,2]
[391025685,1760296319358,-752.58667313,0.00029502,2]
[391025686,1760296319367,-4266.0,0.00029502,2]
[391025687,1760296319378,-184.38584719,0.00029502,2]
[391025688,1760296319387,-3349.08118876,0.00029502,2]
[391025689,1760296319396,-1605.02772077,0.00029502,10]
[391025690,1760296319406,-724.88828628,0.00029502,10]
[391025691,1760296319415,-8099.06334645,0.00029502,7]
[391025692,1760296319424,-631.92390638,0.00029502,6]
[391025693,1760296319433,-543.02587191,0.00029502,7]
[391025694,1760296319442,-3790.30265773,0.00029502,7]
[391025695,1760296319451,-2313.34720414,0.00029502,10]
[391025696,1760296319461,-2340.03191854,0.00029502,10]
[391025697,1760296319470,-1000.0,0.00029502,10]
[391025698,1760296319479,-500.0,0.00029502,10]
[391025699,1760296319488,-25939.99869373,0.00029502,7]
[391025700,1760296319497,-1058.14003185,0.00029502,7]
[391025701,1760296319508,-474.40777555,0.00029502,7]
[391025702,1760296319518,-5006.31534318,0.00029502,10]
[391025703,1760296319527,-554.39144673,0.00029502,7]
[391025704,1760296319537,-279.84091825,0.00029502,10]
[391025705,1760296319547,-222.25573658,0.00029502,7]
[391025706,1760296319556,-349.57415508,0.00029502,7]
[391025707,1760296319565,-237.84542645,0.00029502,7]
[391025708,1760296319576,-2365.28717831,0.00029502,7]
[391025709,1760296319585,-1033.58829948,0.00029502,7]
[391025710,1760296319594,-502.33558558,0.00029502,7]
[391025711,1760296319603,-5403.96338378,0.00029502,10]
[391025712,1760296319612,-1057.11109046,0.00029502,15]
[391025713,1760296319622,-300.0,0.00029502,15]
[391025714,1760296319631,-2365.14640786,0.00029502,14]
[391025715,1760296319641,-1279.78418815,0.00029502,15]
[391025716,1760296319650,-231.85186492,0.00029502,14]
[391025717,1760296319660,-230.45794291,0.00029502,15]
[391025718,1760296319669,-628.91242928,0.00029502,14]
[391025719,1760296319678,-150.0,0.00029502,14]
[391025720,1760296319687,-86681.5653563,0.00029502,10]
[391025721,1760296319697,-5268.04834569,0.00029502,14]
[391025722,1760296319707,-154551.78425328,0.00029502,14]
[391025723,1760296319717,-4444.32177767,0.00029502,20]
[391025724,1760296319727,-11173.22326316,0.00029502,7]
[391025725,1760296319737,-742.36163509,0.00029502,2]
[391025726,1760296319746,-31380.24203504,0.00029502,2]
[391025727,1760296319755,-2000.0,0.00029502,5]
[391025728,1760296319765,-169.32636262,0.00029502,2]
[391025729,1760296319774,-506.40682478,0.00029502,2]
[391025730,1760296319784,-117445.80870333,0.00029502,15]
[391025731,1760296319794,-23117.16574879,0.00029502,2]
[391025732,1760296319803,-585.92733397,0.00029502,2]
[391025733,1760296319814,-572.46925063,0.00029502,2]
[391025734,1760296319826,-369.12270208,0.00029502,2]
[391025735,1760296319835,-3020200.72232962,0.00029502,2]
[391025736,1760296319845,-156.1,0.00029502,2]
[391025737,1760296319855,-839.89527855,0.00029502,2]
[391025738,1760296319864,-1000.0,0.00029502,15]
[391025739,1760296319874,-500.0,0.00029502,20]
[391025740,1760296319884,-702692.77260925,0.00029502,2]
[391025741,1760296319893,-150.0,0.00029502,10]
[391025742,1760296319903,-150.0,0.00029502,2]
[391025743,1760296319913,-264.42215494,0.00029502,2]
[391025744,1760296319924,-1004.12522456,0.00029502,20]
[391025745,1760296319934,-1809.23006126,0.00029502,10]
[391025746,1760296319943,-41600.49307671,0.00029502,10]
[391025747,1760296319954,-1194.42153766,0.00029502,2]
[391025748,1760296319964,-1049.26452646,0.00029502,2]
[391025749,1760296319973,-3000.0,0.00029502,120]
[391025750,1760296319983,-1000.0,0.00029502,30]
[391025751,1760296319994,-150.0,0.00029502,30]
[391025752,1760296320003,-214.3,0.00029502,30]
[391025753,1760296320013,-214.3,0.00029502,30]
[391025754,1760296320023,-214.3,0.00029502,30]
[391025755,1760296320032,-439.49488825,0.00029502,120]
[391025756,1760296320042,-1000.0,0.00029502,30]
[391025757,1760296320051,-2753.11,0.00029502,120]
[391025758,1760296320060,-2753.11,0.00029502,120]
[391025759,1760296320071,-2753.11,0.00029502,120]
[391025760,1760296320080,-2753.11,0.00029502,120]
[391025761,1760296320089,-2753.11,0.00029502,120]
[391025762,1760296320099,-2753.11,0.00029502,120]
[391025763,1760296320108,-2753.11,0.00029502,120]
[391025764,1760296320117,-2753.11,0.00029502,120]
[391025765,1760296320127,-2753.11,0.00029502,120]
[391025766,1760296320137,-2753.11,0.00029502,120]
[391025767,1760296320147,-2753.11,0.00029502,120]
[391025768,1760296320156,-2753.11,0.00029502,120]
[391025769,1760296320165,-2753.11,0.00029502,120]
[391025770,1760296320175,-2753.11,0.00029502,120]
[391025771,1760296320184,-2753.11,0.00029502,120]
[391025772,1760296320194,-2753.11,0.00029502,120]
[391025773,1760296320204,-2753.11,0.00029502,120]
[391025774,1760296320214,-2753.11,0.00029502,120]
[391025775,1760296320223,-2753.11,0.00029502,120]
[391025776,1760296320233,-2753.11,0.00029502,120]
[391025777,1760296320243,-2753.11,0.00029502,120]
[391025778,1760296320253,-2753.11,0.00029502,120]
[391025779,1760296320263,-2753.11,0.00029502,120]
[391025780,1760296320273,-2753.34756837,0.00029502,120]
[391025781,1760296320284,-1000.0,0.00029502,60]
[391025782,1760296320294,-1000.0,0.00029502,30]
[391025783,1760296320304,-8522.87,0.00029502,120]
[391025784,1760296320314,-8522.87,0.00029502,120]
[391025785,1760296320325,-8522.87,0.00029502,120]
[391025786,1760296320336,-8522.87,0.00029502,120]
[391025787,1760296320346,-8522.87,0.00029502,120]
[391025788,1760296320356,-8522.87,0.00029502,120]
[391025789,1760296320366,-8522.87,0.00029502,120]
[391025790,1760296320376,-8522.87,0.00029502,120]
[391025791,1760296320386,-8522.87,0.00029502,120]
[391025792,1760296320401,-8522.87,0.00029502,120]
[391025793,1760296320411,-8522.87,0.00029502,120]
[391025794,1760296320420,-8522.87,0.00029502,120]
[391025795,1760296320429,-8522.87,0.00029502,120]
[391025796,1760296320439,-8522.87,0.00029502,120]
[391025797,1760296320448,-8522.87,0.00029502,120]
[391025798,1760296320458,-8522.87,0.00029502,120]
[391025799,1760296320467,-8522.87,0.00029502,120]
[391025800,1760296320477,-8522.87,0.00029502,120]
[391025801,1760296320486,-8522.87,0.00029502,120]
[391025802,1760296320495,-8522.87,0.00029502,120]
[391025803,1760296320505,-8522.87,0.00029502,120]
[391025804,1760296320514,-8522.87,0.00029502,120]
[391025805,1760296320524,-8522.87,0.00029502,120]
[391025806,1760296320533,-8523.04349783,0.00029502,120]
[391025807,1760296320542,-1000.0,0.00029502,30]
[391025808,1760296320553,-1000.0,0.00029502,60]
[391025809,1760296320562,-1000.0,0.00029502,60]
[391025810,1760296320572,-1000.0,0.00029502,60]
[391025811,1760296320582,-912.81375058,0.00029502,60]
[391025812,1760296320592,-1000.0,0.00029502,30]
[391025813,1760296320601,-1000.0,0.00029502,30]
[391025814,1760296320611,-1000.0,0.00029502,60]
[391025815,1760296320620,-1000.0,0.00029502,60]
[391025816,1760296320629,-1000.0,0.00029502,60]
[391025817,1760296320639,-1000.0,0.00029502,30]
[391025818,1760296320648,-1000.0,0.00029502,30]
[391025819,1760296320657,-1000.0,0.00029502,120]
[391025820,1760296320667,-1000.0,0.00029502,120]
[391025821,1760296320678,-1000.02,0.00029502,60]
[391025822,1760296320690,-2887.85458,0.00029502,60]
[391025823,1760296320699,-2887.85458,0.00029502,60]
[391025824,1760296320709,-2887.85458,0.00029502,60]
[391025825,1760296320719,-2887.85458,0.00029502,60]
[391025826,1760296320728,-2887.85458,0.00029502,60]
[391025827,1760296320738,-3000.0,0.00029502,120]
[391025828,1760296320748,-620.0,0.00029502,120]
[391025829,1760296320758,-24631.0,0.00029502,30]
[391025830,1760296320767,-214.3,0.00029502,30]
[391025831,1760296320777,-252.26307937,0.00029502,120]
[391025832,1760296320787,-2823.42,0.00029502,120]
[391025833,1760296320797,-2888.15446233,0.00029502,90]
[391025834,1760296320808,-2383.31429405,0.00029502,120]
[391025835,1760296320817,-532.21489414,0.00029502,30]
[391025836,1760296320828,-384.90918925,0.00029502,60]
[391025837,1760296320838,-397.76429523,0.00029502,30]
[391025838,1760296320847,-665.65957833,0.00029502,30]
[391025839,1760296320857,-2401.24439863,0.00029502,120]
[391025840,1760296320867,-435.86337183,0.00029502,120]
[391025841,1760296320876,-505.26859743,0.00029502,91]
[391025842,1760296320886,-2118.06837614,0.00029502,30]
[391025843,1760296320895,-1481.24515609,0.00029502,30]
[391025844,1760296320907,-142066.30051441,0.00029502,30]
[391025845,1760296320917,-912.61179326,0.00029502,30]
[391025846,1760296320927,-1000.0,0.00029502,30]
[391025847,1760296320937,-2501.5439372,0.00029502,30]
[391025848,1760296320947,-494.78406451,0.00029502,120]
[391025849,1760296320958,-2920.20208318,0.00029502,30]
[391025850,1760296320969,-2962.79270521,0.00029502,120]
[391025851,1760296320979,-698.13685344,0.00029502,30]
[391025852,1760296320990,-722.7486288,0.00029502,120]
[391025853,1760296321002,-2089.46073552,0.00029502,30]
[391025854,1760296321157,-769.95124871,0.00029502,30]
[391025855,1760296321167,-183.0145017,0.00029502,120]
[391025856,1760296321178,-1987.97368703,0.00029502,30]
[391025857,1760296321188,-2189.48341762,0.00029502,30]
[391025858,1760296321199,-151.84479956,0.00029502,120]
[391025859,1760296321209,-2485.86643577,0.00029502,120]
[391025860,1760296321219,-2062.22205379,0.00029502,120]
[391025861,1760296321228,-2500.0,0.00029502,30]
[391025862,1760296321238,-1346.967482,0.00029502,120]
[391025863,1760296321250,-1053.71210368,0.00029502,30]
[391025864,1760296321260,-1484.57858554,0.00029502,30]
[391025865,1760296321270,-2806.13211449,0.00029502,120]
[391025866,1760296321280,-631.62862381,0.00029502,30]
[391025867,1760296321290,-430.97960851,0.00029502,120]
[391025868,1760296321300,-893.72182758,0.00029502,30]
[391025869,1760296321309,-2239.15581284,0.00029502,30]
[391025870,1760296321319,-1110.14234481,0.00029502,120]
[391025871,1760296321335,-902.45646759,0.00029502,30]
[391025872,1760296321344,-2271.92826188,0.00029502,30]
[391025873,1760296321354,-5396.94198405,0.00029502,90]
[391025874,1760296321363,-442.64660512,0.00029502,120]
[391025875,1760296321372,-1175.93882499,0.00029502,30]
[391025876,1760296321382,-298.60263676,0.00029502,120]
[391025877,1760296321392,-972.07235149,0.00029502,30]
[391025878,1760296321402,-352.09754803,0.00029502,60]
[391025879,1760296321411,-189.28679489,0.00029502,120]
[391025880,1760296321421,-217.52488873,0.00029502,30]
[391025881,1760296321431,-1330.62902719,0.00029502,30]
[391025882,1760296321441,-1004.23742927,0.00029502,30]
[391025883,1760296321451,-2026.10029336,0.00029502,120]
[391025884,1760296321461,-2000.0,0.00029502,30]
[391025885,1760296321472,-526.33448184,0.00029502,120]
[391025886,1760296321482,-366.96928148,0.00029502,30]
[391025887,1760296321493,-321.58592808,0.00029502,60]
[391025888,1760296321504,-477.86083565,0.00029502,30]
[391025889,1760296321515,-672.97898269,0.00029502,30]
[391025890,1760296321525,-2243.69036079,0.00029502,120]
[391025891,1760296321535,-1935.18238229,0.00029502,30]
[391025892,1760296321546,-272.55506941,0.00029502,120]
[391025893,1760296321556,-1057.0807841,0.00029502,30]
[391025894,1760296321566,-3330.69529679,0.00029502,120]
[391025895,1760296321580,-10145314.63948953,0.00029502,30]
[391025896,1760296321590,-276.23430194,0.00029502,120]
[391025897,1760296321599,-272.52080257,0.00029502,120]
[391025898,1760296321608,-1592.61769464,0.00029502,120]
[391025899,1760296321618,-484.60133042,0.00029502,120]
[391025900,1760296321628,-1791.96360645,0.00029502,120]
[391025901,1760296321638,-505.56697014,0.00029502,120]
[391025902,1760296321648,-3226.06980518,0.00029502,30]
[391025903,1760296321659,-185.48058409,0.00029502,30]
[391025904,1760296321668,-2288.74449976,0.00029502,120]
[391025905,1760296321677,-997.0,0.00029502,30]
[391025906,1760296321687,-2194.59221991,0.00029502,31]
[391025907,1760296321696,-874.1309692,0.00029502,30]
[391025908,1760296321706,-173.41354027,0.00029502,120]
[391025909,1760296321716,-187.09584578,0.00029502,120]
[391025910,1760296321725,-931.69539217,0.00029502,120]
[391025911,1760296321734,-937.99086195,0.00029502,30]
[391025912,1760296321744,-923.34749536,0.00029502,30]
[391025913,1760296321754,-341.25462843,0.00029502,60]
[391025914,1760296321764,-431.4036007,0.00029502,30]
[391025915,1760296321774,-594.6455326,0.00029502,120]
[391025916,1760296321784,-1899.3355091,0.00029502,120]
[391025917,1760296321794,-1468.46478375,0.00029502,120]
[391025918,1760296321804,-402.87780599,0.00029502,60]
[391025919,1760296321813,-213.13175846,0.00029502,30]
[391025920,1760296321825,-1355.94805718,0.00029502,120]
[391025921,1760296321835,-2422.28333372,0.00029502,80]
[391025922,1760296321844,-2148.32795533,0.00029502,120]
[391025923,1760296321854,-1068.18579192,0.00029502,30]
[391025924,1760296321864,-1580.00145633,0.00029502,120]
[391025925,1760296321873,-1118.5280931,0.00029502,30]
[391025926,1760296321883,-910.26503169,0.00029502,120]
[391025927,1760296321893,-279.15981157,0.00029502,30]
[391025928,1760296321902,-1595.35733446,0.00029502,30]
[391025929,1760296321914,-2359.78625577,0.00029502,30]
[391025930,1760296321924,-2820.63099557,0.00029502,30]
[391025931,1760296321933,-1260.58747111,0.00029502,120]
[391025932,1760296321943,-960.66522865,0.00029502,30]
[391025933,1760296321954,-1254.83980693,0.00029502,120]
[391025934,1760296321964,-2039.10458714,0.00029502,120]
[391025935,1760296321974,-213.00125518,0.00029502,31]
[391025936,1760296321985,-1843.62177366,0.00029502,30]
[391025937,1760296321996,-1325.57947054,0.00029502,120]
[391025938,1760296322007,-2437.73605124,0.00029502,30]
[391025939,1760296322017,-556.49398187,0.00029502,120]
[391025940,1760296322026,-1998.29272449,0.00029502,30]
[391025941,1760296322037,-1533.69798207,0.00029502,30]
[391025942,1760296322046,-30273.66584382,0.00029502,30]
[391025943,1760296322056,-250.16353607,0.00029502,30]
[391025944,1760296322067,-1370.12445404,0.00029502,120]
[391025945,1760296322081,-756.0,0.00029502,120]
[391025946,1760296322097,-1164.07782121,0.00029502,120]
[391025947,1760296322112,-2604.3904303,0.00029502,120]
[391025948,1760296322130,-1200.8768184,0.00029502,30]
[391025949,1760296322143,-506.06431906,0.00029502,120]
[391025950,1760296322153,-565.71904796,0.00029502,120]
[391025951,1760296322164,-857.9067893,0.00029502,30]
[391025952,1760296322173,-12988.0,0.00029502,30]
[391025953,1760296322183,-274.1476563,0.00029502,30]
[391025954,1760296322193,-2909.99826019,0.00029502,120]
[391025955,1760296322202,-448.77876042,0.00029502,30]
[391025956,1760296322212,-2355.48724651,0.00029502,120]
[391025957,1760296322221,-417.32314485,0.00029502,120]
[391025958,1760296322231,-1524.25181689,0.00029502,30]
[391025959,1760296322240,-257.02505561,0.00029502,60]
[391025960,1760296322249,-1083.89168997,0.00029502,30]
[391025961,1760296322259,-712.24420241,0.00029502,120]
[391025962,1760296322268,-729.42889639,0.00029502,120]
[391025963,1760296322278,-2626976.51963555,0.00029502,30]
[391025964,1760296322287,-200.78960191,0.00029502,120]
[391025965,1760296322297,-1702.91480538,0.00029502,120]
[391025966,1760296322306,-1642.67532745,0.00029502,120]
[391025967,1760296322315,-1289.00110176,0.00029502,120]
[391025968,1760296322325,-254.18270507,0.00029502,120]
[391025969,1760296322334,-724.13531005,0.00029502,30]
[391025970,1760296322344,-810.00266537,0.00029502,120]
[391025971,1760296322353,-2033.94897993,0.00029502,30]
[391025972,1760296322363,-368.42804207,0.00029502,30]
[391025973,1760296322373,-1440.33088294,0.00029502,120]
[391025974,1760296322382,-202899.98739575,0.00029502,30]
[391025975,1760296322392,-1222.64246546,0.00029502,30]
[391025976,1760296322402,-2647.90389447,0.00029502,30]
[391025977,1760296322412,-2714.4159059,0.00029502,60]
[391025978,1760296322422,-1933.41511011,0.00029502,120]
[391025979,1760296322432,-363.01423294,0.00029502,120]
[391025980,1760296322442,-509.50039452,0.00029502,30]
[391025981,1760296322452,-2449.76028854,0.00029502,120]
[391025982,1760296322462,-2324.34959947,0.00029502,30]
[391025983,1760296322471,-309.64235422,0.00029502,120]
[391025984,1760296322481,-2853.21778313,0.00029502,30]
[391025985,1760296322490,-1375.71492093,0.00029502,30]
[391025986,1760296322500,-2720.56,0.00029502,30]
[391025987,1760296322510,-816.93929593,0.00029502,120]
[391025988,1760296322519,-279.06335689,0.00029502,30]
[391025989,1760296322528,-500.0,0.00029502,120]
[391025990,1760296322537,-151.15348319,0.00029502,120]
[391025991,1760296322547,-3061.87620251,0.00029502,120]
[391025992,1760296322556,-187.04035172,0.00029502,30]
[391025993,1760296322565,-183.61305241,0.00029502,120]
[391025994,1760296322577,-528.94687939,0.00029502,120]
[391025995,1760296322586,-1322.999999,0.00029502,120]
[391025996,1760296322596,-500.0,0.00029502,120]
[391025997,1760296322605,-500.0,0.00029502,120]
[391025998,1760296322614,-500.0,0.00029502,120]
[391025999,1760296322624,-500.0,0.00029502,120]
[391026000,1760296322635,-500.0,0.00029502,120]
[391026001,1760296322645,-500.0,0.00029502,120]
[391026002,1760296322655,-500.0,0.00029502,120]
[391026003,1760296322665,-500.0,0.00029502,120]
[391026004,1760296322674,-500.0,0.00029502,120]
[391026005,1760296322685,-500.0,0.00029502,120]
[391026006,1760296322698,-500.0,0.00029502,120]
[391026007,1760296322710,-311.05971792,0.00029502,120]
[391026008,1760296322721,-500.0,0.00029502,120]
[391026009,1760296322732,-500.0,0.00029502,120]
[391026010,1760296322742,-561.58,0.00029502,120]
[391026011,1760296322752,-561.72,0.00029502,120]
[391026012,1760296322762,-500.0,0.00029502,120]
[391026013,1760296322772,-500.0,0.00029502,120]
[391026014,1760296322782,-500.0,0.00029502,120]
[391026015,1760296322792,-500.0,0.00029502,120]
[391026016,1760296322802,-500.0,0.00029502,120]
[391026017,1760296322812,-500.0,0.00029502,120]
[391026018,1760296322822,-500.0,0.00029502,120]
[391026019,1760296322834,-1119.63,0.00029502,120]
[391026020,1760296322844,-1119.63,0.00029502,120]
[391026021,1760296322855,-1119.63,0.00029502,120]
[391026022,1760296322866,-1119.63,0.00029502,120]
[391026023,1760296322876,-1119.63,0.00029502,120]
[391026024,1760296322887,-1119.63,0.00029502,120]
[391026025,1760296322897,-1119.63,0.00029502,120]
[391026026,1760296322909,-1119.63,0.00029502,120]
[391026027,1760296322927,-1119.63,0.00029502,120]
[391026028,1760296322938,-1119.63,0.00029502,120]
[391026029,1760296322947,-1119.63,0.00029502,120]
[391026030,1760296322958,-1119.63,0.00029502,120]
[391026031,1760296322969,-1119.63,0.00029502,120]
[391026032,1760296322979,-1119.63,0.00029502,120]
[391026033,1760296322991,-1119.63,0.00029502,120]
[391026034,1760296323001,-1119.63,0.00029502,120]
[391026035,1760296323011,-1119.63,0.00029502,120]
[391026036,1760296323020,-1119.63,0.00029502,120]
[391026037,1760296323030,-1119.63,0.00029502,120]
[391026038,1760296323040,-1119.63,0.00029502,120]
[391026039,1760296323049,-1119.63,0.00029502,120]
[391026040,1760296323058,-1119.63,0.00029502,120]
[391026041,1760296323068,-1119.63,0.00029502,120]
[391026042,1760296323079,-1119.74505099,0.00029502,120]
[391026043,1760296323089,-500.0,0.00029502,120]
[391026044,1760296323099,-500.0,0.00029502,120]
[391026045,1760296323109,-495.3,0.00029502,120]
[391026046,1760296323119,-500.0,0.00029502,120]
[391026047,1760296323129,-500.0,0.00029502,120]
[391026048,1760296323138,-500.0,0.00029502,120]
[391026049,1760296323148,-500.0,0.00029502,120]
[391026050,1760296323158,-500.0,0.00029502,120]
[391026051,1760296323168,-500.0,0.00029502,120]